bitfinex-derivatives/quotes_ETHF0:USTF0_20250110
["timestamp","ask_amount","ask_price","bid_price","bid_amount"]
[1736530217511,0.3048,3281.3,3281.2,40.8]
[1736530218112,0.30478,3281.5,3281.2,40.8]
[1736530218415,3.6464,3281.7,3281.2,40.8]
[1736530218612,0.30478,3281.5,3281.2,41.1048]
[1736530218813,4.0823,3281.7,3281.2,40.8]
[1736530219016,0.30477,3281.6,3281.2,40.8]
[1736530219212,0.3048,3281.3,3281.2,40.8]
[1736530220720,11.83585208,3281.5,3281.4,0.30479]
[1736530221412,11.83585208,3281.5,3281.4,3.51259]
[1736530221711,3.2078,3282.1,3281.4,3.6755]
[1736530221914,0.30478,3281.6,3281.4,3.6755]
[1736530222215,0.30478,3281.6,3281.4,3.2078]
[1736530222815,0.30478,3281.6,3281.4,3.51259]
[1736530223016,2.85320016,3281.9,3281.4,3.51259]
[1736530223017,0.30478,3281.5,3281.4,3.2078]
[1736530223412,0.30478,3281.5,3281.2,40.8]
[1736530223413,0.3048,3281.3,3281.2,40.8]
[1736530223614,0.4511,3281.4,3280.8,3.2078]
[1736530223814,0.3048,3281.3,3281.0,0.30482]
[1736530224014,1.3513,3281.4,3280.8,3.2078]
[1736530224312,0.30484,3280.9,3280.8,3.2078]
[1736530224914,1.3513,3281.4,3280.8,3.2078]
[1736530225117,0.30483,3281.1,3280.8,3.51264]
[1736530225715,1.3513,3281.4,3280.8,3.51264]
[1736530225716,0.30483,3281.0,3280.8,3.51264]
[1736530226119,2.85320016,3281.1,3280.7,40.8]
[1736530226317,0.30484,3280.8,3280.7,40.8]
[1736530227220,2.85320016,3281.1,3280.7,40.8]
[1736530227621,0.30484,3280.8,3280.7,40.8]
[1736530228019,2.85320016,3281.1,3280.4,3.2078]
[1736530228327,2.85320016,3281.1,3279.9,0.4614]
[1736530228328,0.30491,3280.1,3279.9,0.30493]
[1736530228516,0.30492,3280.0,3279.8,3.51273]
[1736530228719,0.30491,3280.2,3280.0,0.30492]
[1736530229020,2.85320016,3280.1,3279.6,40.8]
[1736530229227,0.30495,3279.7,3279.6,40.8]
[1736530229628,2.85320016,3280.1,3279.6,40.8]
[1736530230421,2.85320016,3280.1,3279.6,41.10495]
[1736530230730,0.30493,3280.0,3279.6,44.31275]
[1736530231031,3.2078,3280.2,3279.6,44.0078]
[1736530231227,0.30495,3279.7,3279.6,40.8]
[1736530231527,0.30495,3279.7,3278.5,0.76264]
[1736530231528,6.06100016,3279.7,3278.7,3.2078]
[1736530231832,0.30502,3279.0,3278.8,40.8]
[1736530232028,0.30497,3279.5,3278.8,40.8]
[1736530232232,0.30501,3279.1,3278.8,41.10503]
[1736530232525,0.9071,3279.6,3278.8,40.8]
[1736530232835,3.2078,3279.3,3278.8,40.8]
[1736530233021,6.06100016,3279.3,3278.8,40.8]
[1736530233226,0.30502,3278.9,3278.8,40.8]
[1736530233724,6.06100016,3279.3,3278.8,40.8]
[1736530233725,3.2078,3279.3,3278.8,40.8]
[1736530234336,0.30502,3278.9,3278.4,0.4469]
[1736530234643,0.30503,3278.8,3278.6,3.2078]
[1736530234839,0.30501,3279.1,3278.7,40.8]
[1736530235139,0.30502,3279.0,3278.7,40.8]
[1736530235341,3.2078,3279.3,3278.7,40.8]
[1736530235539,0.30497,3279.5,3279.1,0.305]
[1736530235746,0.305,3279.2,3278.8,0.76223]
[1736530235934,6.06100016,3279.7,3278.8,0.76223]
[1736530235935,3.2078,3279.7,3278.8,0.4572]
[1736530236238,0.4334,3280.0,3278.9,3.6785]
[1736530236440,0.30497,3279.6,3279.1,0.305]
[1736530236630,0.30492,3280.1,3279.7,0.30494]
[1736530236834,0.3049,3280.2,3279.8,3.51273]
[1736530237036,2.85320016,3280.5,3279.8,3.2078]
[1736530237237,0.30493,3280.0,3279.8,3.2078]
[1736530237440,2.85320016,3280.5,3279.8,3.2078]
[1736530237640,0.30493,3279.9,3279.8,3.2078]
[1736530237839,3.2078,3280.0,3279.2,3.2078]
[1736530238339,0.30501,3279.0,3278.9,0.4707]
[1736530238641,3.2078,3279.1,3278.7,40.8]
[1736530239138,3.2078,3279.1,3278.8,0.30502]
[1736530239537,0.30503,3278.9,3278.7,44.0078]
[1736530239739,0.30503,3278.8,3278.7,3.2078]
[1736530239937,2.35927747,3279.0,3278.3,3.2078]
[1736530240239,3.2078,3279.1,3278.4,40.8]
[1736530240438,0.30501,3279.0,3278.7,3.51283]
[1736530240736,0.30497,3279.5,3278.8,0.30503]
[1736530241043,3.2078,3279.7,3279.1,3.2078]
[1736530241248,0.30493,3280.0,3279.6,3.2078]
[1736530241537,3.2078,3280.1,3279.2,3.2078]
[1736530241745,3.2078,3280.1,3279.2,3.51279]
[1736530241746,0.30497,3279.5,3279.2,3.51279]
[1736530241933,3.2078,3280.1,3279.2,3.2078]
[1736530242136,2.35927747,3280.0,3279.2,3.2078]
[1736530242332,3.6407,3280.0,3279.2,3.2078]
[1736530242543,3.94562,3280.0,3279.7,0.30494]
[1736530242748,2.35927747,3280.3,3279.3,0.4616]
[1736530242946,0.30495,3279.7,3279.4,0.30497]
[1736530243244,5.56707747,3280.0,3279.4,0.30497]
[1736530243245,0.30493,3279.9,3279.4,0.30497]
[1736530243443,0.30493,3279.9,3279.3,0.4616]
[1736530243444,0.30495,3279.7,3279.3,0.4616]
[1736530243644,0.30495,3279.7,3279.4,0.30497]
[1736530243840,3.2078,3280.0,3279.3,0.4616]
[1736530244045,3.51269,3280.4,3279.6,3.97019]
[1736530244245,3.2078,3280.4,3279.7,0.9156]
[1736530244444,0.30491,3280.2,3279.9,0.30492]
[1736530244846,0.30491,3280.2,3279.7,0.9156]
[1736530245143,0.30491,3280.2,3279.9,0.30492]
[1736530245345,0.30491,3280.1,3279.8,0.30493]
[1736530245550,2.85845948,3280.2,3279.6,3.2078]
[1736530245750,0.30495,3279.7,3279.4,0.30497]
[1736530245942,0.30495,3279.7,3279.3,41.2616]
[1736530245943,2.85845948,3280.2,3279.5,0.30497]
[1736530246150,2.85845948,3280.2,3279.3,41.2616]
[1736530246345,0.30497,3279.4,3279.3,40.8]
[1736530246645,3.2078,3280.0,3279.2,0.30499]
[1736530246646,0.30497,3279.5,3279.2,0.30499]
[1736530246947,3.2078,3279.5,3278.8,41.2771]
[1736530247147,0.30502,3278.9,3278.8,40.8]
[1736530247346,0.30507,3278.5,3277.9,0.4771]
[1736530247552,0.30507,3278.5,3278.1,0.30509]
[1736530247741,0.30508,3278.3,3278.2,40.8]
[1736530251759,1.357,3278.3,3276.6,3.2078]
[1736530251953,3.2078,3277.4,3276.9,1.21671]
[1736530252154,3.2078,3277.4,3276.6,3.2078]
[1736530252459,3.2078,3277.4,3276.6,3.4510995]
[1736530252660,3.51293,3277.8,3277.2,0.30517]
[1736530252856,3.51293,3277.8,3277.1,0.4784]
[1736530252857,3.2078,3277.8,3277.1,0.4784]
[1736530253049,3.2078,3277.8,3277.4,0.30516]
[1736530253360,3.2078,3277.8,3277.1,0.9115]
[1736530253756,0.30514,3277.7,3277.2,0.30517]
[1736530253951,4.0906,3278.2,3277.1,0.9115]
[1736530254154,0.30512,3277.9,3277.4,0.30515]
[1736530254659,0.30512,3277.9,3277.4,3.2078]
[1736530254860,0.30513,3277.8,3277.4,3.51296]
[1736530255258,0.30514,3277.7,3277.4,3.2078]
[1736530255457,3.6536,3278.2,3277.4,3.51296]
[1736530255661,0.30512,3277.9,3277.4,3.51296]
[1736530255864,3.51296,3277.5,3277.1,1.1589645]
[1736530256058,3.2078,3277.5,3277.1,0.9115]
[1736530256364,0.30517,3277.3,3277.1,0.9115]
[1736530257157,0.30517,3277.3,3277.0,40.8]
[1736530257158,3.2078,3277.5,3277.0,40.8]
[1736530257356,3.51299,3277.1,3277.0,40.8]
[1736530259161,3.2078,3277.1,3277.0,40.8]
[1736530259363,0.30518,3277.2,3277.0,40.8]
[1736530259763,0.30519,3277.2,3277.0,40.8]
[1736530260061,0.30519,3277.1,3277.0,40.8]
[1736530260255,0.30519,3277.1,3276.5,3.10148339]
[1736530260256,0.3052,3277.0,3276.5,0.24302391]
[1736530260458,3.2078,3276.6,3276.0,0.471]
[1736530260661,0.30527,3276.3,3276.0,0.471]
[1736530260972,0.30525,3276.5,3276.1,0.30528]
[1736530261160,3.2078,3276.6,3276.3,40.8]
[1736530261768,3.51304,3276.6,3276.3,40.8]
[1736530262267,0.76287,3277.6,3276.5,0.30524]
[1736530262268,3.513,3277.0,3276.5,0.30524]
[1736530262464,3.2078,3277.0,3276.6,0.4416]
[1736530262768,0.30521,3277.0,3276.6,0.4416]
[1736530263164,0.30521,3277.0,3276.7,0.30523]
[1736530263472,0.30519,3277.1,3276.8,0.30521]
[1736530264161,0.30519,3277.1,3276.8,0.30522]
[1736530264368,3.2078,3277.4,3276.9,2.85845948]
[1736530264666,3.2078,3277.0,3276.9,2.85845948]
[1736530264860,3.2078,3277.0,3276.7,0.456]
[1736530265061,3.2078,3277.0,3276.2,0.24137423]
[1736530265262,0.30523,3276.8,3276.2,3.89137423]
[1736530265462,0.30523,3276.8,3276.4,0.30525]
[1736530265766,0.4592,3276.9,3276.5,0.30524]
[1736530265767,0.76441,3276.9,3276.5,0.30524]
[1736530265967,0.30522,3276.8,3276.5,0.30524]
[1736530266369,3.51304,3276.6,3276.3,41.10525]
[1736530266572,3.2078,3276.6,3276.3,40.8]
[1736530266764,3.2078,3276.6,3276.5,0.30524]
[1736530266964,3.2078,3277.0,3276.3,40.8]
[1736530267270,3.2078,3277.0,3276.4,0.30525]
[1736530267566,3.2078,3276.5,3276.3,40.8]
[1736530267773,0.30525,3276.4,3276.3,40.8]
[1736530267976,0.3053,3276.0,3275.7,0.30532]
[1736530268164,3.2078,3275.9,3275.7,0.30531]
[1736530268465,3.5131,3275.9,3275.8,40.8]
[1736530269165,3.2078,3275.9,3275.8,40.8]
[1736530269360,3.5131,3275.9,3275.8,40.8]
[1736530269569,3.2078,3275.9,3274.8,0.9082]
[1736530269761,3.2078,3275.1,3274.1,0.4504]
[1736530269964,3.2078,3274.6,3274.4,0.30543]
[1736530270164,3.2078,3274.6,3274.5,0.30543]
[1736530270369,3.6809,3275.0,3274.3,2.36397499]
[1736530270566,3.2078,3275.6,3274.5,0.76358]
[1736530270776,3.2078,3275.6,3275.5,0.30534]
[1736530270966,3.2078,3275.6,3275.4,0.30534]
[1736530271170,3.2078,3275.6,3275.5,0.30534]
[1736530271364,3.2078,3275.6,3275.0,1.3559]
[1736530271671,3.2078,3276.0,3275.9,0.3053]
[1736530271862,3.2078,3276.0,3275.9,46.1053]
[1736530272065,3.2078,3276.4,3276.3,0.30526]
[1736530272466,0.4731,3276.7,3276.6,0.30524]
[1736530272869,3.2078,3276.9,3276.8,0.30522]
[1736530273070,3.51297,3277.3,3276.9,0.30521]
[1736530273374,3.2078,3277.3,3277.1,0.30518]
[1736530273674,0.4373,3277.7,3276.8,44.0078]
[1736530273976,0.30514,3277.7,3277.4,0.30515]
[1736530274367,3.6528,3278.0,3277.3,0.30517]
[1736530274368,0.30512,3277.8,3277.3,0.30517]
[1736530274567,0.30512,3277.8,3277.2,3.2078]
[1736530274776,0.30512,3277.8,3277.3,0.30517]
[1736530274977,0.30512,3277.8,3277.5,0.30515]
[1736530275185,3.6528,3278.0,3277.2,3.2078]
[1736530275572,3.2078,3277.3,3276.8,40.8]
[1736530275773,0.30514,3277.6,3277.4,0.30516]
[1736530275970,0.30514,3277.6,3277.3,0.30517]
[1736530276174,0.30513,3277.7,3277.1,0.30519]
[1736530276480,3.2078,3277.8,3277.7,0.30513]
[1736530276980,0.445,3278.0,3277.8,0.30512]
[1736530277170,0.445,3278.0,3276.6,0.8846]
[1736530277171,3.97059,3277.9,3276.6,0.8846]
[1736530277367,3.97059,3277.9,3276.4,0.76312]
[1736530277368,0.30522,3276.8,3276.5,0.30524]
[1736530277572,3.2078,3277.0,3276.2,3.2078]
[1736530277771,0.30521,3276.9,3276.7,0.30522]
[1736530277972,3.2078,3277.0,3276.3,40.8]
[1736530278171,3.513,3277.0,3276.8,0.30521]
[1736530278371,3.2078,3277.0,3276.4,0.30525]
[1736530278579,3.2078,3277.0,3276.3,43.6651437]
[1736530278780,3.513,3277.0,3276.8,0.30521]
[1736530278980,3.2078,3277.0,3276.3,43.6651437]
[1736530279578,0.74911,3276.9,3276.4,0.30525]
[1736530279778,0.74911,3276.9,3276.3,43.6651437]
[1736530279779,0.4439,3276.9,3276.3,43.6651437]
[1736530279979,0.74911,3276.9,3276.7,0.30522]
[1736530280481,0.4439,3276.9,3276.4,0.30525]
[1736530280775,0.8765,3277.4,3276.3,43.6651437]
[1736530280776,3.2078,3277.4,3277.3,0.30517]
[1736530280976,0.76264,3278.6,3277.2,2.8651437]
[1736530280977,3.2078,3277.8,3277.2,2.8651437]
[1736530281187,0.4439,3277.9,3277.8,0.30512]
[1736530281378,3.6517,3277.9,3277.1,0.30519]
[1736530281577,3.6517,3277.9,3276.9,0.9222]
[1736530281776,0.30515,3277.6,3276.9,0.9222]
[1736530282080,3.6517,3277.9,3277.5,40.8]
[1736530282482,3.6517,3277.9,3277.8,0.30512]
[1736530283077,3.95682,3277.9,3277.6,0.30514]
[1736530283275,3.95682,3277.9,3277.5,40.8]
[1736530283276,3.6517,3277.9,3277.5,40.8]
[1736530283476,3.6517,3277.9,3277.8,0.30512]
[1736530283682,0.4439,3277.9,3277.8,0.30512]
[1736530283988,3.2078,3278.3,3278.2,0.30509]
[1736530285388,3.2078,3278.7,3278.2,41.10509]
[1736530285685,0.4437,3279.0,3278.9,0.30502]
[1736530286380,0.4437,3279.0,3278.9,41.10502]
[1736530287284,3.2078,3279.1,3279.0,0.30501]
[1736530287482,3.6836,3279.5,3279.4,0.30497]
[1736530287980,3.6515,3279.9,3279.0,3.97034]
[1736530288187,0.4758,3279.8,3279.0,3.97034]
[1736530288389,0.4758,3279.8,3279.7,0.30495]
[1736530288883,3.6515,3279.9,3279.2,2.8651437]
[1736530289080,3.6515,3279.9,3279.8,0.30494]
[1736530289280,3.6515,3279.9,3278.9,40.8]
[1736530289580,0.305,3279.2,3279.0,0.30501]
[1736530289776,0.4734,3279.1,3278.8,0.30503]
[1736530290083,0.4734,3279.1,3278.3,3.2078]
[1736530290084,3.51282,3278.9,3278.6,0.30504]
[1736530290392,3.2078,3278.9,3278.8,0.30503]
[1736530290778,3.51283,3278.9,3278.6,0.30504]
[1736530291083,3.2078,3278.9,3278.4,2.8651437]
[1736530291290,3.2078,3278.9,3278.7,0.30503]
[1736530291484,3.2078,3278.9,3278.8,0.30503]
[1736530291985,3.2078,3278.9,3278.2,40.8]
[1736530292186,3.2078,3278.4,3278.3,0.30508]
[1736530292484,3.2078,3278.4,3278.2,40.8]
[1736530292681,0.4402,3278.3,3277.3,3.2078]
[1736530292882,0.4402,3278.3,3276.9,0.441]
[1736530292883,3.2078,3277.9,3276.9,3.6488]
[1736530293086,0.30514,3277.7,3277.4,0.30516]
[1736530293388,0.30514,3277.7,3277.5,0.30515]
[1736530293583,0.4607,3277.8,3277.0,40.8]
[1736530293791,0.4402,3277.6,3277.5,0.30515]
[1736530294187,0.4402,3277.6,3277.4,0.30516]
[1736530294382,0.30519,3277.1,3277.0,40.8]
[1736530294580,3.51299,3277.1,3277.0,40.8]
[1736530294785,3.20779,3277.1,3277.0,40.8]
[1736530294987,3.51298,3277.1,3277.0,40.8]
[1736530296591,3.20779,3277.1,3276.0,2.8651437]
[1736530296784,3.20779,3277.1,3277.0,0.3052]
[1736530297087,0.4402,3277.6,3277.0,40.8]
[1736530297283,3.2078,3277.7,3277.6,0.30514]
[1736530297488,3.2078,3277.7,3276.9,3.97082]
[1736530297884,3.2078,3277.7,3277.6,41.10514]
[1736530298089,3.6428,3278.1,3277.9,0.30511]
[1736530298394,3.9479,3278.1,3277.9,0.30511]
[1736530298580,0.30513,3277.8,3277.6,40.8]
[1736530298785,3.2078,3277.7,3277.6,40.8]
[1736530299090,3.2078,3277.7,3277.6,41.10514]
[1736530299291,3.2078,3277.7,3277.6,40.8]
[1736530299490,3.2078,3277.7,3277.6,41.10514]
[1736530299692,0.4526,3278.0,3277.6,40.8]
[1736530299884,3.6428,3278.1,3277.6,40.8]
[1736530300084,3.6428,3278.1,3278.0,0.30511]
[1736530300786,3.6428,3278.1,3277.6,40.8]
[1736530301092,3.6428,3278.1,3277.9,0.30511]
[1736530301294,3.6428,3278.1,3277.6,40.8]
[1736530301494,3.6428,3278.1,3278.0,0.30511]
[1736530301989,3.2078,3278.1,3278.0,0.30511]
[1736530302590,3.2078,3278.1,3277.9,0.30511]
[1736530302792,3.20627702,3278.1,3278.0,0.30511]
[1736530303486,3.20627702,3278.1,3276.9,3.2078]
[1736530303693,3.2078,3277.4,3276.9,3.2078]
[1736530303901,3.2078,3277.4,3276.4,3.2078]
[1736530303902,3.2078,3277.0,3276.4,3.2078]
[1736530304083,0.30523,3276.7,3276.5,41.10524]
[1736530304288,0.30522,3276.8,3276.5,41.10524]
[1736530304484,3.2078,3277.0,3276.5,40.8]
[1736530304687,3.51301,3277.0,3276.5,40.8]
[1736530304894,3.2078,3277.0,3276.5,40.8]
[1736530305097,0.4413,3277.3,3276.6,0.7631]
[1736530305391,11.83585208,3277.8,3277.7,0.30513]
[1736530306186,11.83585208,3277.8,3277.7,41.10513]
[1736530306395,0.3051,3278.1,3277.9,0.30511]
[1736530306595,0.30508,3278.3,3278.1,0.3051]
[1736530306795,6.0729437,3278.4,3277.7,40.8]
[1736530306996,3.51292,3277.9,3277.7,40.8]
[1736530307192,0.30512,3277.8,3277.7,40.8]
[1736530307493,3.2078,3277.9,3277.8,0.30512]
[1736530308290,3.2078,3277.9,3277.7,40.8]
[1736530308690,3.51291,3277.9,3277.7,41.10513]
[1736530309398,3.2078,3277.9,3277.8,0.30512]
[1736530309596,3.2078,3277.9,3277.7,40.8]
[1736530309790,0.30512,3277.8,3277.3,0.30517]
[1736530309994,3.2078,3277.9,3276.8,0.9451]
[1736530309995,0.30514,3277.6,3276.8,0.9451]
[1736530310202,0.30514,3277.6,3277.2,0.30517]
[1736530310399,0.4744,3277.7,3277.3,40.8]
[1736530310595,0.30515,3277.5,3277.3,41.10516]
[1736530310797,0.30515,3277.6,3277.4,0.30516]
[1736530311097,0.30516,3277.5,3277.3,41.10517]
[1736530311296,0.30516,3277.4,3277.3,40.8]
[1736530311494,3.2078,3277.5,3277.4,0.30516]
[1736530311696,0.4744,3277.7,3277.3,40.8]
[1736530312293,0.30524,3276.6,3276.2,0.30527]
[1736530312600,0.26016,3276.4,3276.2,0.30527]
[1736530312798,0.30525,3276.5,3276.3,41.10526]
[1736530312993,0.30525,3276.4,3276.3,40.8]
[1736530313194,0.9188,3276.7,3276.1,3.2078]
[1736530313394,0.30531,3275.9,3275.7,0.30531]
[1736530313688,3.2078,3276.4,3275.8,40.8]
[1736530313890,3.51306,3276.4,3276.3,0.30526]
[1736530314101,3.2078,3276.4,3276.3,0.30526]
[1736530314296,3.2078,3276.4,3275.8,44.0078]
[1736530314504,0.30529,3276.0,3275.8,44.3131]
[1736530314698,0.30529,3276.1,3275.9,0.3053]
[1736530314996,3.2078,3276.4,3276.3,0.30526]
[1736530315295,0.30521,3276.9,3276.7,0.30522]
[1736530315495,3.2078,3277.0,3276.9,0.30521]
[1736530315899,3.2078,3277.0,3275.9,3.30590214]
[1736530316095,0.30525,3276.5,3276.3,0.30525]
[1736530316292,0.30525,3276.5,3276.4,40.8]
[1736530317393,3.51304,3276.6,3276.4,40.8]
[1736530317700,0.30524,3276.5,3276.4,40.8]
[1736530318203,0.30524,3276.5,3274.9,3.30590214]
[1736530318204,5.4624,3276.5,3274.9,3.30590214]
[1736530318404,0.30534,3275.6,3275.0,0.30538]
[1736530318594,0.30534,3275.6,3274.9,0.76348]
[1736530318799,0.30533,3275.6,3275.5,40.8]
[1736530319195,3.2078,3275.8,3275.5,40.8]
[1736530319401,3.2078,3275.8,3275.7,0.30532]
[1736530319903,0.30527,3276.3,3276.1,0.30528]
[1736530320405,0.30527,3276.3,3276.2,40.8]
[1736530320897,3.2078,3276.6,3276.2,40.8]
[1736530321107,0.4689,3277.2,3276.5,3.2078]
[1736530321304,3.2078,3277.4,3277.3,0.30517]
[1736530322403,0.4619,3277.9,3277.3,3.2078]
[1736530322601,3.6767,3278.0,3277.8,0.30512]
[1736530322795,3.6767,3278.0,3277.4,0.76291]
[1736530322796,3.6767,3278.0,3277.9,0.30511]
[1736530323103,3.51291,3278.0,3277.8,0.30512]
[1736530323302,3.6435,3278.4,3277.4,0.76291]
[1736530323500,0.30508,3278.3,3278.1,0.30509]
[1736530323699,0.30508,3278.3,3277.4,1.19941]
[1736530323700,3.6435,3278.4,3277.4,1.19941]
[1736530323999,3.6435,3278.4,3278.3,0.30508]
[1736530324000,3.2078,3278.4,3278.3,0.30508]
[1736530324506,3.51287,3278.4,3277.8,3.2078]
[1736530324801,3.2078,3278.4,3278.3,0.30508]
[1736530325107,11.83585208,3278.9,3277.7,0.76282]
[1736530325108,0.30503,3278.9,3278.6,0.30504]
[1736530325298,0.30503,3278.9,3278.0,0.76277]
[1736530325299,0.30503,3278.9,3278.7,40.8]
[1736530325610,0.74072,3279.0,3278.7,41.10503]
[1736530325906,0.30503,3278.9,3278.7,40.8]
[1736530326201,0.30503,3278.8,3278.7,40.8]
[1736530326405,0.30503,3278.8,3278.1,0.30509]
[1736530326406,0.7626,3278.8,3278.1,0.30509]
[1736530326602,0.30508,3278.3,3278.0,0.3051]
[1736530326794,3.2078,3278.6,3277.5,3.2078]
[1736530326995,0.30508,3278.3,3278.0,0.3051]
[1736530327303,0.30509,3278.2,3277.9,0.30511]
[1736530327500,0.3051,3278.1,3277.9,0.30511]
[1736530328103,3.2078,3278.6,3277.6,40.8]
[1736530328408,0.3051,3278.2,3277.8,0.30512]
[1736530328602,3.2078,3278.6,3277.8,0.30512]
[1736530328804,0.30513,3277.8,3277.6,40.8]
[1736530329200,0.9013,3278.1,3277.7,0.30513]
[1736530329401,0.30511,3278.0,3277.7,0.30513]
[1736530329702,0.4473,3278.1,3277.9,0.30511]
[1736530329899,0.4473,3278.1,3277.6,40.8]
[1736530330207,3.2078,3277.7,3276.9,3.2078]
[1736530330412,0.30517,3277.3,3277.0,0.30519]
[1736530330616,0.30517,3277.3,3277.1,40.8]
[1736530330909,0.30515,3277.5,3277.1,41.10518]
[1736530331108,0.30517,3277.4,3277.1,40.8]
[1736530331311,0.30516,3277.5,3277.2,0.30518]
[1736530331616,0.30517,3277.4,3277.1,41.10519]
[1736530331908,0.454,3277.6,3277.1,41.10519]
[1736530331909,0.30518,3277.2,3277.1,40.8]
[1736530332104,0.76298,3277.1,3276.2,0.30527]
[1736530332311,1.06814,3277.2,3276.3,0.30526]
[1736530332312,3.2078,3276.5,3276.3,0.30526]
[1736530332508,3.51305,3276.5,3276.2,0.30527]
[1736530332811,0.30529,3276.0,3275.8,0.30531]
[1736530333104,0.30529,3276.0,3275.5,0.9164]
[1736530333105,3.2078,3276.0,3275.7,0.30531]
[1736530333311,0.3053,3275.9,3275.7,0.30531]
[1736530333699,3.2078,3276.0,3275.5,0.9164]
[1736530334006,3.5131,3276.0,3275.5,0.9164]
[1736530334311,3.2078,3276.0,3275.5,0.9164]
[1736530334508,3.2078,3276.0,3275.9,0.3053]
[1736530334713,3.2078,3276.0,3275.8,0.30531]
[1736530334714,0.3053,3275.9,3275.8,0.30531]
[1736530335309,0.30532,3275.8,3275.6,0.30532]
[1736530335708,0.30531,3275.9,3275.8,0.30531]
[1736530335911,0.30531,3275.9,3275.8,41.10531]
[1736530336111,3.2078,3276.0,3275.8,40.8]
[1736530336310,3.2078,3276.0,3275.9,0.3053]
[1736530336511,0.30526,3276.3,3275.8,40.8]
[1736530336811,0.30529,3276.0,3275.8,40.8]
[1736530337020,3.2078,3276.4,3275.8,40.8]
[1736530337207,0.3053,3275.9,3275.8,40.8]
[1736530338311,0.4604,3276.2,3275.8,40.8]
[1736530338615,0.3053,3276.0,3275.8,40.8]
[1736530338812,0.4604,3276.2,3275.8,40.8]
[1736530339014,0.3053,3276.0,3275.8,40.8]
[1736530339515,0.4604,3276.2,3275.8,40.8]
[1736530339713,0.3053,3275.9,3275.8,40.8]
[1736530340514,0.4604,3276.2,3275.8,40.8]
[1736530340714,0.3053,3276.0,3275.8,40.8]
[1736530341621,0.3053,3275.9,3275.8,40.8]
[1736530341916,0.3053,3276.0,3275.8,40.8]
[1736530342117,0.3053,3276.0,3275.8,41.10531]
[1736530342315,0.3053,3276.0,3275.8,40.8]
[1736530342615,0.4604,3276.2,3275.8,40.8]
[1736530342816,3.2078,3276.4,3276.3,0.30526]
[1736530343316,3.2078,3276.4,3276.3,41.10526]
[1736530343713,15.04365208,3277.0,3276.3,40.8]
[1736530344011,11.83585208,3277.0,3276.9,0.30521]
[1736530344215,11.83585208,3277.7,3276.9,3.2078]
[1736530344412,11.83585208,3277.7,3277.6,0.30514]
[1736530345013,11.83585208,3277.7,3277.6,41.10514]
[1736530345718,3.2078,3277.8,3277.7,0.30513]
[1736530345905,3.2078,3277.8,3277.6,41.10514]
[1736530345906,3.51293,3277.8,3277.6,41.10514]
[1736530346314,3.2078,3277.8,3277.7,0.30513]
[1736530347622,3.96767,3278.4,3278.2,0.30508]
[1736530347812,3.6626,3278.4,3277.6,44.0078]
[1736530348016,0.3051,3278.1,3277.9,0.30511]
[1736530348514,0.30508,3278.3,3278.0,0.3051]
[1736530348718,3.6626,3278.4,3277.6,44.0078]
[1736530348916,3.2078,3278.0,3277.6,40.8]
[1736530349109,3.2078,3278.0,3277.4,0.30516]
[1736530349314,0.30515,3277.6,3277.4,0.30516]
[1736530349518,3.2078,3278.0,3276.8,3.2078]
[1736530349519,3.2078,3277.5,3276.8,3.2078]
[1736530349817,0.76279,3278.0,3276.5,0.30524]
[1736530349818,0.30523,3276.7,3276.5,0.30524]
[1736530350019,3.2078,3277.0,3276.4,0.30525]
[1736530350233,0.30525,3276.4,3276.3,40.8]
[1736530350525,3.2078,3276.4,3275.6,4.1205]
[1736530350828,3.2078,3276.4,3275.6,3.2078]
[1736530351023,0.3053,3275.9,3275.8,0.3053]
[1736530351224,0.3053,3276.0,3275.8,0.3053]
[1736530351524,0.3053,3276.0,3275.7,40.8]
[1736530351525,0.30527,3276.2,3275.7,40.8]
[1736530351721,3.2078,3276.4,3275.7,40.8]
[1736530352122,3.2078,3276.4,3275.9,0.30529]
[1736530352123,0.30529,3276.1,3275.9,0.30529]
[1736530352325,3.2078,3276.4,3276.0,0.30529]
[1736530352519,3.2078,3276.4,3275.7,40.8]
[1736530353219,0.30529,3276.1,3275.9,0.3053]
[1736530353421,3.2078,3276.4,3275.7,40.8]
[1736530353720,3.2078,3276.4,3276.0,0.30529]
[1736530353721,0.30528,3276.2,3276.0,0.30529]
[1736530354033,0.30528,3276.2,3275.9,0.30529]
[1736530354224,0.30528,3276.2,3276.0,0.30529]
[1736530354522,3.2078,3276.4,3275.7,40.8]
[1736530354825,2.12002,3277.0,3275.7,40.8]
[1736530354826,3.2078,3276.8,3275.7,40.8]
[1736530355022,0.30529,3276.1,3275.9,0.3053]
[1736530355221,0.30531,3275.9,3275.7,41.10531]
[1736530355427,0.30531,3275.8,3275.7,40.8]
[1736530356525,3.17028954,3275.8,3275.7,40.8]
[1736530356723,0.3054,3274.9,3274.5,0.24026775]
[1736530356921,0.76333,3275.6,3274.4,0.4375]
[1736530356922,3.51318,3275.1,3274.8,0.3054]
[1736530357222,3.2078,3275.1,3275.0,0.30538]
[1736530357619,3.2078,3275.1,3274.9,40.8]
[1736530357620,4.1055,3275.9,3274.9,40.8]
[1736530357825,0.30538,3275.1,3274.9,40.8]